bitfinex-derivatives/quotes_ETHF0:USTF0_20251223
["timestamp","ask_amount","ask_price","bid_price","bid_amount"]
[1766526468796,0.00242897,2971.1,2969.8,9.40644]
[1766526468991,0.00242897,2971.1,2970.0,0.9263121]
[1766526469188,0.00242897,2971.1,2970.1,3.367]
[1766526470296,0.00242897,2971.1,2970.1,3.53542]
[1766526470987,0.00242897,2971.1,2970.2,9.238]
[1766526473095,3.36942897,2971.1,2970.2,9.238]
[1766526476897,3.36942897,2971.1,2969.6,0.00504982]
[1766526477091,3.36942897,2971.1,2969.7,12.405]
[1766526480200,3.36942897,2971.1,2969.6,11.46026885]
[1766526480201,3.36942897,2971.1,2969.6,0.00504982]
[1766526480409,2.361,2971.0,2969.7,3.367]
[1766526480703,2.361,2971.0,2969.7,3.988]
[1766526492912,2.361,2971.0,2969.6,0.00504982]
[1766526493115,2.361,2971.0,2969.8,3.367]
[1766526494020,0.92620791,2970.7,2969.8,3.367]
[1766526494220,3.367,2970.6,2969.8,3.367]
[1766526497615,0.92620791,2969.9,2968.8,1.09469791]
[1766526497821,4.29320791,2970.1,2969.0,0.92620791]
[1766526498212,4.29320791,2970.1,2968.9,8.451]
[1766526498818,0.00504982,2969.8,2969.2,0.00504982]
[1766526499122,0.00504982,2969.8,2969.3,3.367]
[1766526501620,0.00504982,2969.8,2969.2,0.00504982]
[1766526501814,0.92620791,2969.3,2968.6,3.367]
[1766526502725,0.92620791,2969.3,2968.7,0.00504982]
[1766526508431,0.00504982,2969.8,2968.8,0.92620791]
[1766526508617,3.37304982,2969.8,2968.9,3.368]
[1766526509127,0.00504982,2969.8,2968.9,3.368]
[1766526510521,0.00504982,2969.8,2969.1,0.92620791]
[1766526510729,0.00504982,2969.8,2969.2,3.368]
[1766526512916,0.00504982,2969.8,2968.8,0.92620791]
[1766526513123,0.00504982,2969.8,2968.9,9.248]
[1766526515827,0.00504982,2969.8,2968.7,0.00504982]
[1766526516129,0.93125773,2969.8,2968.8,9.248]
[1766526519635,0.92620791,2969.6,2968.8,9.248]
[1766526521633,4.29420791,2969.6,2968.7,0.00504982]
[1766526521833,0.92620791,2969.4,2968.8,3.368]
[1766526522037,3.368,2969.3,2968.8,3.368]
[1766526530231,4.29420791,2969.3,2968.8,3.368]
[1766526531245,4.29420791,2969.3,2968.3,5.882]
[1766526531442,4.29420791,2969.3,2968.4,3.369]
[1766526532245,4.29420791,2969.3,2968.6,0.00336658]
[1766526534046,0.92620791,2969.1,2968.6,0.00336658]
[1766526536550,40.80504982,2969.8,2968.6,0.00336658]
[1766526536750,3.369,2969.7,2968.6,0.92957449]
[1766526536949,3.369,2969.7,2968.8,0.92620791]
[1766526537547,3.369,2969.7,2968.7,3.369]
[1766526540057,3.369,2969.7,2968.8,0.92620791]
[1766526540454,0.00504982,2969.8,2968.8,6.06120791]
[1766526540658,3.369,2970.1,2969.2,0.92620791]
[1766526540860,3.369,2970.1,2969.3,3.369]
[1766526541648,0.00504982,2970.0,2969.3,3.369]
[1766526541952,0.92620791,2969.8,2969.2,3.369]
[1766526544659,0.93125773,2970.0,2969.2,3.369]
[1766526548056,0.00504982,2970.0,2969.2,3.369]
[1766526552263,0.00504982,2970.0,2969.2,4.29520791]
[1766526554465,0.16836,2971.3,2969.8,0.92620791]
[1766526554655,3.368,2971.0,2970.0,0.92620791]
[1766526554861,3.368,2971.0,2970.1,3.368]
[1766526555569,0.00504982,2970.8,2970.3,0.00504982]
[1766526558372,3.368,2971.0,2970.3,0.00504982]
[1766526558570,0.00242897,2971.1,2970.3,0.00504982]
[1766526558869,0.00242897,2971.1,2970.4,3.368]
[1766526559657,3.368,2971.3,2970.4,3.368]
[1766526560466,0.00504982,2971.1,2970.4,3.368]
[1766526560666,3.368,2971.6,2970.4,11.788]
[1766526561871,0.00504982,2971.3,2970.4,11.788]
[1766526564673,0.00504982,2971.3,2970.5,9.246]
[1766526564867,0.00504982,2971.3,2970.5,9.24868488]
[1766526569674,0.00504982,2971.3,2970.6,3.367]
[1766526572976,3.37204982,2971.3,2970.6,3.367]
[1766526573174,3.37204982,2971.3,2970.5,0.00268488]
[1766526573374,3.37204982,2971.3,2970.5,3.36968488]
[1766526577579,0.00504982,2971.3,2970.5,3.36968488]
[1766526577779,3.367,2971.5,2970.5,3.36968488]
[1766526590785,3.367,2971.5,2970.5,0.00268488]
[1766526590990,3.367,2971.5,2970.6,3.366]
[1766526591990,3.367,2971.5,2970.6,3.37014072]
[1766526593691,0.00431311,2971.6,2970.6,3.37014072]
[1766526595892,3.37031311,2971.6,2970.6,3.37014072]
[1766526601093,8.417,2972.6,2970.6,3.37014072]
[1766526601094,0.16828,2972.7,2970.6,3.53853072]
[1766526601292,40.8,2973.0,2970.9,0.92593243]
[1766526601293,3.366,2972.6,2970.9,0.92593243]
[1766526601590,3.366,2972.5,2971.0,14.305]
[1766526601989,0.92593243,2971.6,2970.6,0.00414072]
[1766526602296,3.366,2971.5,2970.6,0.00414072]
[1766526603197,3.366,2971.5,2970.7,3.366]
[1766526614601,3.366,2972.4,2970.8,8.58538]
[1766526614799,3.366,2972.4,2971.0,1.09430243]
[1766526615104,3.366,2972.4,2971.1,3.366]
[1766526615405,3.366,2972.4,2971.2,5.877]
[1766526615704,3.36867018,2972.4,2971.2,5.877]
[1766526616103,3.36867018,2972.4,2971.3,0.92509304]
[1766526616305,3.36867018,2972.4,2971.4,3.366]
[1766526617106,3.36867018,2972.4,2971.5,0.92509304]
[1766526618602,3.36867018,2972.4,2971.7,0.92509304]
[1766526618810,3.36867018,2972.4,2971.8,3.366]
[1766526619010,3.36867018,2972.4,2971.8,3.37104982]
[1766526620906,3.36867018,2972.4,2971.8,0.00504982]
[1766526621212,0.92509304,2971.9,2971.2,3.366]
[1766526621408,4.29109304,2971.9,2971.2,3.0513]
[1766526621615,4.29109304,2971.9,2971.2,1.1237]
[1766526621806,4.29109304,2971.9,2970.7,5.876]
[1766526622011,0.00504982,2971.6,2971.0,0.00504982]
[1766526623409,0.00504982,2971.6,2971.0,0.93014286]
[1766526623609,0.00504982,2971.6,2971.1,3.366]
[1766526628916,0.00267018,2972.4,2971.1,3.366]
[1766526629117,0.92509304,2972.1,2971.1,3.366]
[1766526629319,3.366,2972.0,2971.1,3.366]
[1766526632420,0.92509304,2971.9,2971.1,3.366]
[1766526636021,0.92509304,2971.9,2971.0,0.00504982]
[1766526636214,0.92509304,2971.7,2971.1,3.1693]
[1766526636517,4.29109304,2971.7,2971.1,2.3432]
[1766526636720,4.29109304,2971.7,2971.1,2.0285]
[1766526636924,0.92509304,2971.5,2970.6,0.00414072]
[1766526637126,0.92509304,2971.5,2970.7,3.366]
[1766526637617,0.92509304,2971.5,2970.6,0.00414072]
[1766526637824,0.92509304,2971.2,2970.6,0.00414072]
[1766526638118,4.29614286,2971.2,2970.6,0.00919054]
[1766526639332,4.29614286,2971.2,2970.6,0.00414074]
[1766526639622,3.37104982,2971.2,2970.6,0.00414074]
[1766526640311,3.37104982,2971.2,2970.6,0.00812925]
[1766526642830,0.92509304,2970.8,2969.8,0.16844]
[1766526643030,0.92509304,2970.8,2969.9,3.366]
[1766526643725,0.92509304,2970.8,2970.1,0.00504982]
[1766526644430,0.92509304,2970.8,2970.2,3.366]
[1766526646531,3.366,2970.9,2970.2,3.366]
[1766526647227,3.366,2970.9,2970.1,0.00504982]
[1766526647431,3.366,2970.9,2970.2,3.366]
[1766526648633,3.366,2970.9,2970.1,0.00504982]
[1766526648830,0.92509304,2970.5,2969.7,3.366]
[1766526649042,4.29109304,2970.5,2969.7,3.366]
[1766526649935,4.29109304,2970.5,2969.8,0.00504982]
[1766526653433,4.29109304,2970.5,2969.7,3.36981149]
[1766526654236,4.29109304,2970.5,2969.8,0.00504982]
[1766526658035,0.00504982,2971.2,2969.8,0.00504982]
[1766526658236,4.81709304,2971.1,2969.8,0.00504982]
[1766526658736,0.92509304,2970.9,2969.8,0.00504982]
[1766526659034,3.367,2970.8,2969.8,0.00504982]
[1766526660235,0.92509304,2971.1,2969.9,0.92509304]
[1766526660441,3.367,2971.0,2970.0,3.367]
[1766526660637,3.367,2971.0,2970.1,0.92509304]
[1766526661840,3.367,2971.0,2970.0,3.367]
[1766526662537,3.367,2971.0,2970.1,0.92509304]
[1766526663435,0.00504982,2971.2,2970.5,0.92509304]
[1766526663638,0.16829,2972.6,2970.7,0.92509304]
[1766526663639,3.367,2971.7,2970.7,0.92509304]
[1766526663933,3.367,2971.8,2970.9,0.92509304]
[1766526664141,3.367,2971.9,2971.0,3.367]
[1766526664835,0.00504982,2971.7,2971.2,0.00504982]
[1766526669447,0.00504982,2971.7,2971.2,4.982e-05]
[1766526676051,0.00267018,2972.4,2971.4,0.92509304]
[1766526676255,3.366,2972.3,2971.6,0.92509304]
[1766526676455,3.366,2972.3,2971.6,4.29109304]
[1766526677056,3.366,2972.3,2971.6,3.366]
[1766526677057,0.00504982,2972.2,2971.6,3.366]
[1766526677459,0.00504982,2972.2,2971.4,4.29109304]
[1766526678061,0.00504982,2972.2,2971.4,3.366]
[1766526682776,0.00504982,2972.2,2971.2,4.982e-05]
[1766526682973,0.00504982,2972.2,2971.3,3.366]
[1766526684875,0.00504982,2972.2,2971.4,3.366]
[1766526685575,0.00504982,2972.2,2971.5,3.366]
[1766526695381,8.415,2973.1,2971.5,3.366]
[1766526695679,8.064,2973.0,2971.5,3.366]
[1766526696582,0.00504982,2972.5,2971.5,3.366]
[1766526696880,3.37104982,2972.5,2971.5,3.366]
[1766526702385,3.37104982,2972.5,2971.5,8.845]
[1766526708387,3.37104982,2972.5,2971.2,0.16840982]
[1766526708581,3.37104982,2972.5,2971.3,17.652]
[1766526712288,4.983,2972.4,2971.3,5.874]
[1766526712496,4.983,2972.4,2971.4,3.365]
[1766526714300,3.37104982,2972.5,2971.4,3.365]
[1766526714301,0.00504982,2972.5,2971.4,3.365]
[1766526714600,3.365,2972.4,2971.4,3.365]
[1766526722000,0.00504982,2972.5,2971.4,3.365]
[1766526722199,3.37004982,2972.5,2971.4,3.365]
[1766526722496,3.37004982,2972.5,2971.2,0.16840982]
[1766526722697,3.37004982,2972.5,2971.3,3.581]
[1766526722903,3.37004982,2972.5,2971.4,3.365]
[1766526728114,3.37004982,2972.5,2971.2,4.982e-05]
[1766526728412,3.37004982,2972.5,2971.2,3.36504982]
[1766526737915,3.37004982,2972.5,2971.2,4.982e-05]
[1766526737916,0.92514882,2972.3,2971.2,4.982e-05]
[1766526738116,0.92514882,2971.9,2970.6,3.366]
[1766526738423,3.366,2971.8,2970.6,3.366]
[1766526739117,3.366,2971.8,2970.9,0.00504982]
[1766526739821,0.92514882,2971.9,2970.9,0.00504982]
[1766526740018,0.92571756,2971.6,2970.9,0.00504982]
[1766526740319,3.366,2971.5,2970.9,0.00504982]
[1766526741322,3.366,2971.5,2970.9,0.93076738]
[1766526742222,3.366,2971.5,2970.9,0.00504982]
[1766526743523,3.366,2971.5,2970.9,3.37104982]
[1766526757844,4.29171756,2971.5,2970.3,1.09412756]
[1766526758045,4.29171756,2971.5,2970.4,9.13]
[1766526758445,4.29171756,2971.5,2970.5,0.92571756]
[1766526758646,3.366,2971.5,2970.5,0.92571756]
[1766526758848,3.366,2971.5,2970.7,0.00504982]
[1766526759047,3.366,2971.5,2970.7,3.37104982]
[1766526762452,3.366,2971.5,2970.7,4.29676738]
[1766526764148,5.427,2972.2,2971.1,0.92571756]
[1766526764446,3.366,2972.1,2971.1,4.29171756]
[1766526764652,4.29171756,2972.1,2971.1,3.366]
[1766526765950,3.366,2972.1,2971.1,4.29171756]
[1766526766852,0.92571756,2972.2,2971.1,4.29171756]
[1766526767047,4.29171756,2972.2,2971.1,4.29171756]
[1766526768850,0.92571756,2971.3,2970.7,0.00504982]
[1766526769057,3.366,2971.5,2970.7,3.37104982]
[1766526769757,3.366,2971.5,2970.7,0.00504982]
[1766526769952,3.366,2971.5,2970.8,3.366]
[1766526772552,5.12,2971.8,2970.8,3.366]
[1766526772758,3.366,2971.5,2970.8,3.366]
[1766526776953,3.366,2971.5,2970.7,0.00504982]
[1766526777354,3.366,2971.5,2970.8,3.366]
[1766526779154,3.366,2971.5,2970.7,0.00504982]
[1766526779457,3.366,2971.5,2970.7,3.37104982]
[1766526780762,3.366,2971.5,2970.3,0.92571756]
[1766526781059,3.366,2971.5,2970.5,0.92571756]
[1766526781562,3.366,2971.5,2970.7,0.00504982]
[1766526782054,0.92571756,2972.3,2971.1,0.92571756]
[1766526782361,3.366,2972.2,2971.2,3.366]
[1766526786559,0.00504982,2972.5,2971.5,0.92571756]
[1766526786766,3.366,2972.4,2971.6,3.366]
[1766526787861,0.92571756,2972.3,2971.1,0.92571756]
[1766526788067,0.92571756,2972.3,2971.2,3.366]
[1766526788457,0.92571756,2971.9,2971.3,3.366]
[1766526788659,3.366,2972.0,2971.0,0.16837]
[1766526788855,3.366,2972.0,2971.1,3.366]
[1766526797483,3.366,2972.0,2971.2,0.92571756]
[1766526800080,3.366,2972.0,2971.1,3.366]
[1766526801572,3.366,2972.0,2971.2,3.366]
[1766526802377,0.00504982,2972.5,2971.2,3.366]
[1766526802576,3.366,2972.4,2971.2,3.366]
[1766526804979,0.00301284,2973.0,2971.8,0.92523723]
[1766526805187,0.00301284,2973.0,2972.2,0.92523723]
[1766526805382,0.00301284,2973.0,2972.3,3.366]
[1766526806082,0.00504982,2972.9,2972.4,0.00504982]
[1766526807587,0.00504982,2972.9,2972.5,3.365]
[1766526807886,0.00301284,2973.0,2972.5,3.365]
[1766526808081,0.00301284,2973.0,2972.6,3.365]
[1766526808278,0.00301284,2973.0,2972.4,0.00504982]
[1766526808584,0.00301284,2973.0,2972.4,3.37004982]
[1766526808984,0.00806266,2973.0,2972.4,3.37004982]
[1766526819186,3.365,2973.2,2972.4,3.37004982]
[1766526820089,0.00504982,2973.1,2972.4,3.37004982]
[1766526828996,4.982e-05,2973.1,2972.4,3.37004982]
[1766526833799,3.36404982,2973.1,2972.3,3.364]
[1766526834407,3.36404982,2973.1,2972.4,0.00504982]
[1766526841912,3.36404982,2973.1,2972.1,0.16831]
[1766526842109,3.36404982,2973.1,2971.8,0.00274357]
[1766526842310,7.41504982,2973.1,2971.8,0.00274357]
[1766526842609,7.41504982,2973.1,2971.9,3.364]
[1766526843005,7.41504982,2973.1,2972.2,0.00504982]
[1766526847415,7.41504982,2973.1,2972.2,4.982e-05]
[1766526848907,7.41504982,2973.1,2971.8,0.00274357]
[1766526849116,7.41504982,2973.1,2971.6,3.364]
[1766526850012,7.41504982,2973.1,2972.1,0.00504982]
[1766526850213,7.41504982,2973.1,2972.1,0.00797393]
[1766526850912,40.8,2973.0,2971.6,3.364]
[1766526851806,40.8,2973.0,2972.0,0.00504982]
[1766526852007,40.8,2973.0,2971.6,3.36906576]
[1766526853012,40.8,2973.0,2971.6,0.00406576]
[1766526853314,40.8,2973.0,2971.6,3.36906576]
[1766526854115,40.8,2973.0,2972.0,0.00331676]
[1766526857918,40.96826,2973.0,2971.6,3.365]
[1766526858821,40.96826,2973.0,2971.6,3.36756501]
[1766526859719,40.96826,2973.0,2971.6,0.00256501]
[1766526859915,0.16826,2973.0,2971.6,0.00256501]
[1766526861921,0.92499503,2972.8,2971.7,0.92499503]
[1766526862122,10.069,2972.7,2971.8,3.365]
[1766526863323,0.92499503,2972.4,2971.6,0.00256501]
[1766526863520,0.92499503,2972.4,2971.7,3.365]
[1766526863722,7.62899503,2972.4,2971.7,3.365]
[1766526864220,6.704,2972.4,2971.7,3.365]
[1766526864723,10.069,2972.4,2971.7,3.365]
[1766526865325,10.069,2972.4,2971.7,4.28999503]
[1766526865627,0.92499503,2973.6,2971.9,0.92499503]
[1766526865628,10.069,2972.8,2971.9,0.92499503]
[1766526865922,10.069,2972.8,2972.0,3.365]
[1766526877333,3.36504982,2973.1,2972.3,0.92499503]
[1766526877534,4.982e-05,2973.1,2972.5,0.92499503]
[1766526877826,4.982e-05,2973.1,2972.6,3.365]
[1766526883233,2.78904088,2975.5,2973.0,0.92499503]
[1766526883438,0.16804,2977.0,2975.1,0.92499503]
[1766526883623,9.37265937,2976.9,2975.2,3.365]
[1766526883924,0.92499503,2975.7,2973.6,0.92499503]
[1766526884129,43.83258602,2976.8,2973.8,0.92499503]
[1766526884130,10.059,2975.6,2973.8,0.92499503]
[1766526884331,0.00504023,2975.0,2974.0,0.92499503]
[1766526884530,0.00504023,2975.0,2974.1,3.365]
[1766526884838,6.524,2974.9,2974.0,5.869]
[1766526885023,6.524,2974.9,2973.8,0.00284049]
[1766526885024,0.92499503,2974.8,2973.8,0.00284049]
[1766526885336,6.524,2974.9,2973.8,0.92783552]
[1766526885728,7.44899503,2974.9,2973.8,0.00284049]
[1766526887528,0.92499503,2974.7,2973.8,0.00284049]
[1766526887730,0.92499503,2974.7,2972.8,0.16827]
[1766526887731,3.364,2974.6,2973.6,3.364]
[1766526888739,3.364,2974.6,2973.6,3.36826853]
[1766526889138,3.364,2974.6,2973.6,4.29326356]
[1766526891645,3.364,2974.6,2973.6,3.36826853]
[1766526891942,3.364,2974.6,2973.8,0.92499503]
[1766526894044,3.363,2974.5,2973.8,0.92499503]
[1766526894456,0.00504023,2975.0,2974.2,0.92499503]
[1766526894639,0.00504023,2975.0,2974.4,0.92499503]
[1766526895440,0.00293533,2975.6,2974.8,0.92499503]
[1766526895741,0.00293533,2975.6,2974.9,3.363]
[1766526896335,0.00293533,2975.6,2974.3,5.866]
[1766526896535,0.00504023,2975.4,2974.1,0.1682]
[1766526896743,3.36804023,2975.4,2974.2,8.386]
[1766526897741,0.00504023,2975.4,2974.2,9.81021755]
[1766526899949,0.00293533,2975.6,2974.3,0.16819]
[1766526900349,3.363,2976.4,2974.6,1.42421755]
[1766526900651,3.363,2976.4,2974.7,3.363]
[1766526900847,3.363,2976.4,2974.8,5.865]
[1766526901049,0.00504023,2975.9,2975.3,0.00504023]
[1766526901249,0.00504023,2975.9,2975.4,3.363]
[1766526901449,0.00875991,2975.9,2975.4,3.363]
[1766526902647,3.363,2976.4,2975.4,3.363]
[1766526902951,3.363,2976.4,2975.4,9.228]
[1766526903742,0.00504023,2976.2,2975.4,9.228]
[1766526907854,3.362,2976.1,2975.3,0.00504023]
[1766526911857,3.362,2976.1,2975.3,1e-08]
[1766526912051,3.362,2976.1,2975.2,3.362]
[1766526912256,3.362,2976.1,2975.2,2.8511]
[1766526912456,3.362,2976.1,2974.5,0.16817]
[1766526912756,3.362,2976.1,2974.6,8.185]
[1766526913050,3.362,2976.1,2975.1,0.00504023]
[1766526913242,3.362,2976.1,2975.1,3.36704023]
[1766526913753,3.362,2976.1,2975.1,0.00504023]
[1766526913954,3.362,2976.1,2975.1,3.36704023]
[1766526914154,0.00504023,2976.2,2975.1,3.36704023]
[1766526917543,3.362,2976.9,2975.2,1.42421755]
[1766526917743,3.362,2976.9,2975.3,8.405]
[1766526917955,3.362,2976.9,2975.8,0.92240717]
[1766526918153,3.362,2976.9,2975.9,3.362]
[1766526918453,0.00504023,2976.7,2975.9,3.362]
[1766526918656,0.00504023,2976.7,2975.9,3.36605305]
[1766526923154,0.00504023,2976.7,2975.9,0.00405305]
[1766526923461,3.361,2976.6,2975.8,3.361]
[1766526923660,0.16807,2976.4,2975.1,0.00504023]
[1766526923854,4.30783454,2976.3,2975.1,0.00504023]
[1766526924051,0.94683454,2976.2,2975.1,0.00504023]
[1766526924252,41.74683454,2976.2,2975.1,0.00411423]
[1766526924469,0.94683454,2976.1,2974.8,3.361]
[1766526924757,3.361,2976.0,2974.8,3.361]
[1766526924957,0.94683454,2975.9,2974.8,3.361]
[1766526925158,6.669,2975.8,2974.8,3.361]
[1766526925360,3.361,2975.7,2975.0,0.00504023]
[1766526933069,3.361,2975.7,2974.8,3.36561667]
[1766526939074,11.766,2975.7,2973.5,0.16823]
[1766526939271,0.00504023,2974.9,2973.6,3.362]
[1766526939577,3.362,2974.8,2973.7,3.362]
[1766526940076,3.36445705,2974.8,2973.7,3.36574847]
[1766526941272,3.36445705,2974.8,2973.7,0.00374847]
[1766526941674,3.36445705,2974.8,2973.7,3.36574847]
[1766526941875,11.76945705,2974.8,2973.7,0.00374847]
[1766526942074,11.76945705,2974.8,2973.8,3.362]
[1766526942479,3.36445705,2974.8,2973.7,0.00374847]
[1766526953892,3.36445705,2974.8,2973.8,3.363]
[1766526960307,3.36445705,2974.8,2973.7,0.00374847]
[1766526961403,3.36445705,2974.8,2973.7,4.847e-05]
[1766526965404,3.36445705,2974.8,2971.9,0.16832]
[1766526965713,0.92401307,2974.3,2972.5,3.363]
[1766526966007,13.507,2974.2,2972.5,3.363]
[1766526966509,13.507,2974.2,2972.5,3.36601313]
[1766526967102,54.307,2974.2,2972.5,3.36601313]
[1766526968816,54.307,2974.2,2972.6,9.227]
[1766526971313,54.307,2974.2,2972.7,3.363]
[1766526972408,0.16817,2974.7,2972.7,3.363]
[1766526972602,19.38342734,2974.6,2972.8,0.92401307]
[1766526972807,18.60317,2974.6,2972.5,0.00301313]
[1766526973013,40.8,2974.5,2972.6,3.363]
[1766526973202,40.8,2974.5,2972.7,5.865]
[1766526975609,0.92401307,2974.0,2972.5,0.00301313]
[1766526975815,10.037,2973.9,2972.5,0.00301313]
[1766526976013,8.41,2973.8,2972.5,0.00301313]
[1766526976515,8.41,2973.8,2972.5,3.36701313]
[1766526976914,8.41,2973.8,2972.5,0.00301313]
[1766526977115,0.92401307,2973.7,2972.5,0.00301313]
[1766526977410,0.00504023,2973.4,2972.5,0.00301313]
[1766526977617,7.757,2973.3,2972.5,0.00301313]
[1766526978209,7.757,2973.3,2972.5,3.36701313]
[1766526978210,3.364,2973.3,2972.5,3.36701313]
[1766526979216,0.00504023,2973.4,2972.5,3.36701313]
[1766526981919,0.00504023,2973.4,2972.8,0.92428712]
[1766526982119,0.00504023,2973.4,2972.9,3.364]
[1766526983616,0.00504023,2973.4,2973.0,0.92428712]
[1766526984313,0.00504023,2973.4,2972.9,3.364]
[1766526987513,4.023e-05,2973.4,2972.9,3.364]
[1766526988516,4.023e-05,2973.4,2972.9,3.36901786]
[1766526994323,4.023e-05,2973.4,2972.9,0.00501786]
[1766526994519,4.023e-05,2973.4,2973.0,3.364]
[1766526995122,10.036,2973.6,2973.0,3.364]
[1766526996015,10.036,2973.6,2972.9,3.36901786]
[1766526996320,0.00504023,2973.5,2972.9,3.36901786]
[1766526997216,0.00504023,2973.5,2972.9,0.00501786]
[1766526997417,0.00504023,2973.5,2972.8,3.364]
[1766526997925,0.00504023,2973.5,2972.5,0.00301313]
[1766526998129,0.00504023,2973.5,2972.6,3.364]
[1766526998329,0.92932735,2973.5,2972.5,0.00301313]
[1766526999627,0.00504023,2973.5,2972.8,0.92428712]
[1766527001721,0.00504023,2973.5,2972.5,0.00301313]
[1766527001925,0.00504023,2973.5,2972.6,4.28828712]
[1766527002425,0.00504023,2973.5,2972.6,3.364]
[1766527003232,0.00504023,2973.5,2972.5,0.00301313]
[1766527003427,0.00504023,2973.5,2972.6,3.364]
[1766527006032,10.036,2973.6,2972.9,0.92428712]
[1766527006425,10.036,2973.6,2972.9,4.28828712]
[1766527007024,0.00504023,2973.5,2973.0,0.00504023]
[1766527011729,0.00504023,2973.5,2972.5,0.00301313]
[1766527011936,0.00504023,2973.5,2972.6,3.364]
[1766527012325,0.00504023,2973.5,2972.7,0.92428712]
[1766527013138,0.00504023,2973.5,2972.9,0.92428712]
[1766527013835,0.00504023,2973.5,2972.9,4.28828712]
[1766527018537,0.92428712,2975.0,2973.5,0.92428712]
[1766527018538,3.364,2974.5,2973.5,0.92428712]
[1766527018739,3.364,2974.5,2973.5,3.364]
[1766527018939,0.92428712,2974.4,2973.5,3.364]
[1766527019437,0.00504023,2974.2,2973.7,0.00504023]
[1766527019635,3.36904023,2974.2,2973.7,0.00504023]
[1766527020337,4.29332735,2974.2,2972.8,0.16827]
[1766527020540,0.92428712,2974.0,2972.9,9.229]
[1766527020840,3.364,2973.9,2972.9,9.229]
[1766527021538,3.364,2973.9,2973.0,0.92428712]
[1766527022236,3.364,2973.9,2973.1,3.364]
[1766527022835,3.364,2973.9,2973.0,3.364]
[1766527023142,4.28828712,2973.9,2972.8,0.92428712]
[1766527023442,4.28828712,2973.9,2972.9,3.364]
[1766527024943,0.00504023,2974.2,2973.4,0.92428712]
[1766527025241,3.364,2974.1,2973.3,3.364]
[1766527032048,0.00504023,2974.2,2973.3,3.364]
[1766527032347,3.364,2974.1,2973.3,3.364]
[1766527037949,4.28828712,2974.1,2972.8,0.16827]
[1766527038148,4.28828712,2974.1,2973.0,0.92428712]
[1766527038149,3.364,2974.1,2973.0,0.92428712]
[1766527040856,3.36804023,2974.2,2973.4,0.92428712]
[1766527041055,3.36804023,2974.2,2973.5,3.363]
[1766527053059,3.363,2974.7,2973.6,4.887]
[1766527054053,4.023e-05,2974.4,2973.9,0.00504023]
[1766527054251,0.00245705,2974.8,2974.0,3.363]
[1766527055160,0.00504023,2974.7,2974.0,3.363]
[1766527056656,3.363,2975.8,2974.0,3.5312]
[1766527056862,46.364,2975.7,2974.0,3.5312]
[1766527057662,0.00504023,2975.1,2974.0,3.5312]
[1766527066966,0.00504023,2975.1,2974.1,9.224]
[1766527068566,0.00504023,2975.1,2974.0,0.1682]
[1766527068772,0.00504023,2975.1,2974.2,3.363]
[1766527068968,0.00504023,2975.1,2974.0,0.1682]
[1766527069168,0.00504023,2975.1,2974.1,3.363]
[1766527069575,0.00504023,2975.1,2973.9,0.00504023]
[1766527069776,0.00504023,2975.1,2974.0,3.362]
[1766527069973,0.00504023,2975.1,2973.9,0.00504023]
[1766527070165,0.00504023,2975.1,2974.0,3.362]
[1766527071583,0.00504023,2975.1,2974.1,3.362]
[1766527079290,0.00504023,2975.1,2973.9,0.00504023]
[1766527079493,8.407,2975.0,2973.9,0.00504023]
[1766527079690,4.448,2974.9,2973.9,0.00504023]
[1766527080297,4.448,2974.9,2972.9,0.92388571]
[1766527080298,4.448,2974.9,2973.5,3.363]
[1766527080790,40.8,2974.8,2973.5,3.363]
[1766527081298,40.8,2974.8,2973.9,0.00504023]
[1766527081498,40.8,2974.8,2973.9,4.023e-05]
[1766527087804,18.437,2974.7,2973.9,4.023e-05]
[1766527098311,6.755,2974.6,2973.9,4.023e-05]
[1766527098516,10.118,2974.6,2973.9,4.023e-05]
[1766527105919,0.92403398,2974.3,2973.9,4.023e-05]
[1766527106124,10.158,2974.2,2973.9,4.023e-05]
[1766527110320,0.92403398,2974.1,2973.0,4.08]
[1766527110520,0.92403398,2974.1,2973.1,3.363]
[1766527111428,0.92403398,2974.1,2973.3,0.00504023]
[1766527121442,0.92403398,2974.1,2973.3,3.36804023]
[1766527122243,0.92403398,2974.1,2973.3,0.00504023]
[1766527122436,0.92403398,2973.5,2972.5,3.36601313]
[1766527122638,0.92403398,2973.2,2972.5,3.36601313]
[1766527122836,6.669,2973.4,2972.5,3.36601313]
[1766527122837,7.59303398,2973.4,2972.5,3.36601313]
[1766527123444,0.00504023,2973.2,2972.5,3.36601313]
[1766527125343,4.023e-05,2973.2,2972.7,0.92403398]
[1766527125651,4.023e-05,2973.2,2972.6,0.00504022]
[1766527130643,0.16817,2974.6,2972.6,0.00504022]
[1766527130835,10.31818,2974.5,2972.7,4.28803398]
[1766527131143,0.92403398,2974.3,2973.1,0.92403398]
[1766527131333,0.92403398,2974.3,2973.1,4.28803398]
[1766527131334,3.364,2974.2,2973.1,4.28803398]
[1766527131542,10.15,2974.1,2973.1,4.28803398]
[1766527131736,0.00504023,2973.9,2973.1,4.28803398]
[1766527131940,4.023e-05,2973.9,2973.3,0.92403398]
[1766527132142,4.023e-05,2973.9,2973.1,4.28803398]
[1766527133645,4.023e-05,2973.9,2973.3,0.92403398]
[1766527134753,4.023e-05,2973.9,2973.4,3.364]
[1766527136453,4.023e-05,2973.9,2973.0,0.92403398]
[1766527136657,4.023e-05,2973.9,2973.1,3.364]
[1766527137053,4.023e-05,2973.9,2972.7,0.16827]
[1766527137254,4.023e-05,2973.9,2972.8,3.364]
[1766527137560,4.023e-05,2973.9,2972.8,4.28803398]
[1766527138154,4.023e-05,2973.9,2972.8,3.364]
[1766527138453,4.023e-05,2973.9,2973.0,0.92403398]
[1766527139555,3.364,2973.8,2973.1,3.364]
[1766527140065,3.364,2973.8,2973.2,0.92403398]
[1766527140361,3.1795,2973.8,2973.2,0.92403398]